fUSD/lending_fUSD_20260115
["ID","MTS","AMOUNT","RATE_DAILY","PERIOD"]
[402057879,1768500669845,-500.0,0.00036164,10]
[402057880,1768500669854,-500.0,0.00036164,10]
[402057881,1768500669863,-500.0,0.00036164,10]
[402057882,1768500669872,-1231.95,0.00036164,10]
[402057883,1768500669881,-650.34,0.00036164,10]
[402057884,1768500669890,-766.44,0.00036164,10]
[402057885,1768500669898,-539.47,0.00036164,10]
[402057886,1768500669906,-500.0,0.00036164,10]
[402057887,1768500669914,-509.01,0.00036164,10]
[402057888,1768500669921,-500.0,0.00036164,10]
[402057889,1768500669930,-500.0,0.00036164,10]
[402057890,1768500669939,-500.0,0.00036164,10]
[402057891,1768500669948,-500.0,0.00036164,10]
[402057892,1768500669957,-500.0,0.00036164,10]
[402057893,1768500669967,-500.0,0.00036164,10]
[402057894,1768500669976,-500.0,0.00036164,10]
[402057895,1768500669985,-839.28,0.00036164,10]
[402057896,1768500669994,-500.0,0.00036164,10]
[402057897,1768500670004,-829.56,0.00036164,10]
[402057898,1768500670013,-500.0,0.00036164,10]
[402057899,1768500670022,-500.0,0.00036164,10]
[402057900,1768500670032,-500.0,0.00036164,10]
[402057901,1768500670041,-932.03,0.00036164,10]
[402057902,1768500670050,-156.989407,0.00036164,10]
[402057903,1768500670060,-500.0,0.00036164,10]
[402057904,1768500670068,-248.580737,0.00036164,10]
[402057905,1768500670078,-1322.11,0.00036164,10]
[402057906,1768500670088,-781.81,0.00036164,10]
[402057907,1768500670097,-500.0,0.00036164,10]
[402057908,1768500670107,-599.32,0.00036164,10]
[402057909,1768500670116,-500.0,0.00036164,10]
[402057910,1768500670130,-500.0,0.00036164,10]
[402057911,1768500670140,-500.0,0.00036164,10]
[402057912,1768500670149,-500.0,0.00036164,10]
[402057913,1768500670162,-500.0,0.00036164,10]
[402057914,1768500670171,-500.0,0.00036164,10]
[402057915,1768500670181,-500.0,0.00036164,10]
[402057916,1768500670190,-500.0,0.00036164,10]
[402057917,1768500670199,-575.59464466,0.00036164,10]
[402057918,1768500670211,-950.89,0.00036164,10]
[402057919,1768500670220,-500.0,0.00036164,10]
[402057920,1768500670230,-530.04,0.00036164,10]
[402057921,1768500670239,-500.0,0.00036164,10]
[402057922,1768500670249,-179.53250583,0.00036164,10]
[402057923,1768500670258,-675.27,0.00036164,10]
[402057924,1768500670267,-850.83,0.00036164,10]
[402057925,1768500670276,-200.0,0.00036164,120]
[402057926,1768500670285,-736.33,0.00036164,10]
[402057927,1768500670295,-500.0,0.00036164,10]
[402057928,1768500670304,-500.0,0.00036164,10]
[402057929,1768500670313,-587.20479948,0.00036164,10]
[402057930,1768500670323,-500.0,0.00036164,10]
[402057931,1768500670332,-1333.68,0.00036164,10]
[402057932,1768500670341,-838.05,0.00036164,10]
[402057933,1768500670351,-487.85386919,0.00036164,10]
[402057934,1768500670360,-500.0,0.00036164,10]
[402057935,1768500670370,-500.0,0.00036164,10]
[402057936,1768500670380,-500.0,0.00036164,10]
[402057937,1768500670389,-500.0,0.00036164,10]
[402057938,1768500670399,-885.55,0.00036164,10]
[402057939,1768500670409,-392.32747221,0.00036164,10]
[402057940,1768500670418,-546.2,0.00036164,10]
[402057941,1768500670428,-500.0,0.00036164,10]
[402057942,1768500670438,-508.41,0.00036164,10]
[402057943,1768500670448,-500.0,0.00036164,10]
[402057944,1768500670457,-1086.98,0.00036164,10]
[402057945,1768500670467,-500.0,0.00036164,10]
[402057946,1768500670476,-500.0,0.00036164,10]
[402057947,1768500670486,-913.57,0.00036164,10]
[402057948,1768500670496,-500.0,0.00036164,10]
[402057949,1768500670505,-1069.8,0.00036164,10]
[402057950,1768500670515,-500.0,0.00036164,10]
[402057951,1768500670525,-1136.52,0.00036164,10]
[402057952,1768500670534,-500.0,0.00036164,10]
[402057953,1768500670546,-500.0,0.00036164,10]
[402057954,1768500670556,-500.0,0.00036164,10]
[402057955,1768500670565,-500.0,0.00036164,10]
[402057956,1768500670575,-840.9,0.00036164,10]
[402057957,1768500670585,-500.0,0.00036164,10]
[402057958,1768500670595,-500.0,0.00036164,10]
[402057959,1768500670604,-500.0,0.00036164,10]
[402057960,1768500670614,-696.48,0.00036164,10]
[402057961,1768500670623,-500.0,0.00036164,10]
[402057962,1768500670633,-500.0,0.00036164,10]
[402057963,1768500670642,-641.53,0.00036164,10]
[402057964,1768500670652,-160.040885,0.00036164,10]
[402057965,1768500670661,-636.82173296,0.00036164,10]
[402057966,1768500670672,-500.0,0.00036164,10]
[402057967,1768500670681,-500.0,0.00036164,10]
[402057968,1768500670691,-500.0,0.00036164,10]
[402057969,1768500670701,-500.0,0.00036164,10]
[402057970,1768500670710,-500.0,0.00036164,10]
[402057971,1768500670720,-801.98,0.00036164,10]
[402057972,1768500670730,-500.0,0.00036164,10]
[402057973,1768500670740,-500.0,0.00036164,10]
[402057974,1768500670750,-868.46,0.00036164,10]
[402057975,1768500670759,-1024.79,0.00036164,10]
[402057976,1768500670769,-500.0,0.00036164,10]
[402057977,1768500670779,-796.44,0.00036164,10]
[402057978,1768500670788,-500.0,0.00036164,10]
[402057979,1768500670798,-500.0,0.00036164,10]
[402057980,1768500670807,-500.0,0.00036164,10]
[402057981,1768500670817,-342.31675609,0.00036164,10]
[402057982,1768500670826,-610.75,0.00036164,10]
[402057983,1768500670836,-500.0,0.00036164,10]
[402057984,1768500670846,-859.41,0.00036164,10]
[402057985,1768500670855,-500.0,0.00036164,10]
[402057986,1768500670864,-500.0,0.00036164,10]
[402057987,1768500670874,-500.0,0.00036164,10]
[402057988,1768500670883,-500.0,0.00036164,10]
[402057989,1768500670893,-500.0,0.00036164,10]
[402057990,1768500670902,-500.0,0.00036164,10]
[402057991,1768500670912,-500.0,0.00036164,10]
[402057992,1768500670921,-654.51,0.00036164,10]
[402057993,1768500670931,-500.0,0.00036164,10]
[402057994,1768500670941,-500.0,0.00036164,10]
[402057995,1768500670951,-500.0,0.00036164,10]
[402057996,1768500670961,-500.0,0.00036164,10]
[402057997,1768500670971,-300.0,0.00036164,2]
[402057998,1768500670981,-500.0,0.00036164,10]
[402057999,1768500670991,-500.0,0.00036164,10]
[402058000,1768500671000,-545.2513524,0.00036164,10]
[402058001,1768500671010,-855.24,0.00036164,10]
[402058002,1768500671020,-500.0,0.00036164,10]
[402058003,1768500671030,-500.0,0.00036164,10]
[402058004,1768500671041,-1002.62,0.00036164,10]
[402058005,1768500671051,-500.0,0.00036164,10]
[402058006,1768500671060,-500.0,0.00036164,10]
[402058007,1768500671070,-500.0,0.00036164,10]
[402058008,1768500671079,-500.0,0.00036164,10]
[402058009,1768500671089,-500.0,0.00036164,10]
[402058010,1768500671099,-502.4288228,0.00036164,10]
[402058011,1768500671109,-500.0,0.00036164,10]
[402058012,1768500671119,-954.92,0.00036164,10]
[402058013,1768500671129,-500.0,0.00036164,10]
[402058014,1768500671142,-500.0,0.00036164,10]
[402058015,1768500671152,-500.0,0.00036164,10]
[402058016,1768500671163,-500.0,0.00036164,10]
[402058017,1768500671175,-276.66347741,0.00036164,10]
[402058018,1768500671185,-500.0,0.00036164,10]
[402058019,1768500671195,-500.0,0.00036164,10]
[402058020,1768500671205,-500.0,0.00036164,10]
[402058021,1768500671215,-500.0,0.00036164,10]
[402058022,1768500671225,-500.0,0.00036164,10]
[402058023,1768500671235,-702.16,0.00036164,10]
[402058024,1768500671245,-524.92,0.00036164,14]
[402058025,1768500671255,-500.0,0.00036164,10]
[402058026,1768500671265,-653.38,0.00036164,10]
[402058027,1768500671274,-500.0,0.00036164,10]
[402058028,1768500671285,-860.35,0.00036164,10]
[402058029,1768500671294,-987.88,0.00036164,10]
[402058030,1768500671304,-500.0,0.00036164,10]
[402058031,1768500671314,-500.0,0.00036164,10]
[402058032,1768500671323,-500.0,0.00036164,10]
[402058033,1768500671333,-500.0,0.00036164,10]
[402058034,1768500671344,-1253.44,0.00036164,10]
[402058035,1768500671354,-500.0,0.00036164,10]
[402058036,1768500671364,-500.0,0.00036164,10]
[402058037,1768500671374,-500.0,0.00036164,10]
[402058038,1768500671384,-500.0,0.00036164,10]
[402058039,1768500671394,-500.0,0.00036164,10]
[402058040,1768500671404,-500.0,0.00036164,10]
[402058041,1768500671414,-500.0,0.00036164,10]
[402058042,1768500671424,-573.91,0.00036164,10]
[402058043,1768500671434,-500.0,0.00036164,10]
[402058044,1768500671444,-500.0,0.00036164,10]
[402058045,1768500671454,-500.0,0.00036164,10]
[402058046,1768500671464,-500.0,0.00036164,10]
[402058047,1768500671474,-500.0,0.00036164,10]
[402058048,1768500671484,-500.0,0.00036164,10]
[402058049,1768500671494,-500.0,0.00036164,10]
[402058050,1768500671504,-500.0,0.00036164,10]
[402058051,1768500671516,-528.38,0.00036164,10]
[402058052,1768500671526,-517.52,0.00036164,10]
[402058053,1768500671536,-500.0,0.00036164,10]
[402058054,1768500671546,-500.0,0.00036164,10]
[402058055,1768500671556,-500.0,0.00036164,10]
[402058056,1768500671566,-500.0,0.00036164,10]
[402058057,1768500671576,-500.0,0.00036164,10]
[402058058,1768500671586,-987.9,0.00036164,10]
[402058059,1768500671596,-791.82,0.00036164,10]
[402058060,1768500671606,-500.0,0.00036164,10]
[402058061,1768500671616,-500.0,0.00036164,10]
[402058062,1768500671625,-500.0,0.00036164,10]
[402058063,1768500671635,-151.0,0.00036164,31]
[402058064,1768500671646,-794.22,0.00036164,10]
[402058065,1768500671656,-151.0,0.00036164,31]
[402058066,1768500671666,-500.0,0.00036164,10]
[402058067,1768500671676,-500.0,0.00036164,10]
[402058068,1768500671687,-500.0,0.00036164,10]
[402058069,1768500671696,-500.0,0.00036164,10]
[402058070,1768500671706,-500.0,0.00036164,10]
[402058071,1768500671716,-500.0,0.00036164,10]
[402058072,1768500671726,-500.0,0.00036164,10]
[402058073,1768500671736,-404.92757497,0.00036164,10]
[402058074,1768500671746,-500.0,0.00036164,10]
[402058075,1768500671756,-623.39,0.00036164,10]
[402058076,1768500671765,-528.39,0.00036164,10]
[402058077,1768500671775,-500.0,0.00036164,10]
[402058078,1768500671786,-500.0,0.00036164,10]
[402058079,1768500671796,-500.0,0.00036164,10]
[402058080,1768500671806,-500.0,0.00036164,10]
[402058081,1768500671815,-500.0,0.00036164,10]
[402058082,1768500671825,-500.0,0.00036164,10]
[402058083,1768500671835,-500.0,0.00036164,10]
[402058084,1768500671844,-1610.03,0.00036164,10]
[402058085,1768500671855,-520.15,0.00036164,10]
[402058086,1768500671865,-500.0,0.00036164,10]
[402058087,1768500671874,-500.0,0.00036164,10]
[402058088,1768500671884,-500.0,0.00036164,10]
[402058089,1768500671893,-500.0,0.00036164,10]
[402058090,1768500671903,-500.0,0.00036164,10]
[402058091,1768500671913,-701.72,0.00036164,10]
[402058092,1768500671922,-500.0,0.00036164,10]
[402058093,1768500671935,-570.82,0.00036164,10]
[402058094,1768500671945,-678.88,0.00036164,10]
[402058095,1768500671955,-500.0,0.00036164,10]
[402058096,1768500671965,-500.0,0.00036164,10]
[402058097,1768500671974,-783.33,0.00036164,10]
[402058098,1768500671984,-500.0,0.00036164,10]
[402058099,1768500671994,-178.81220088,0.00036164,10]
[402058100,1768500672003,-500.0,0.00036164,10]
[402058101,1768500672013,-500.0,0.00036164,10]
[402058102,1768500672023,-500.0,0.00036164,10]
[402058103,1768500672032,-500.0,0.00036164,120]
[402058104,1768500672042,-540.45,0.00036164,10]
[402058105,1768500672052,-500.0,0.00036164,10]
[402058106,1768500672062,-500.0,0.00036164,10]
[402058107,1768500672071,-3451.71,0.00036164,10]
[402058108,1768500672081,-500.0,0.00036164,10]
[402058109,1768500672091,-500.0,0.00036164,10]
[402058110,1768500672100,-500.0,0.00036164,10]
[402058111,1768500672110,-500.0,0.00036164,10]
[402058112,1768500672120,-612.98,0.00036164,10]
[402058113,1768500672130,-557.9,0.00036164,10]
[402058114,1768500672141,-647.3,0.00036164,10]
[402058115,1768500672150,-1223.01,0.00036164,10]
[402058116,1768500672160,-500.0,0.00036164,10]
[402058117,1768500672171,-500.0,0.00036164,10]
[402058118,1768500672180,-500.0,0.00036164,10]
[402058119,1768500672191,-657.31,0.00036164,10]
[402058120,1768500672201,-621.73,0.00036164,10]
[402058121,1768500672211,-500.0,0.00036164,10]
[402058122,1768500672221,-622.16,0.00036164,10]
[402058123,1768500672231,-1310.33,0.00036164,10]
[402058124,1768500672241,-564.43,0.00036164,10]
[402058125,1768500672251,-858.66,0.00036164,10]
[402058126,1768500672262,-500.0,0.00036164,10]
[402058127,1768500672272,-500.0,0.00036164,10]
[402058128,1768500672283,-570.63,0.00036164,10]
[402058129,1768500672294,-620.58,0.00036164,10]
[402058130,1768500672304,-500.0,0.00036164,10]
[402058131,1768500672314,-556.98,0.00036164,10]
[402058132,1768500672324,-500.0,0.00036164,10]
[402058133,1768500672335,-151.0,0.00036164,31]
[402058134,1768500672345,-691.73,0.00036164,10]
[402058135,1768500672354,-500.0,0.00036164,10]
[402058136,1768500672365,-3211.68,0.00036164,10]
[402058137,1768500672375,-500.0,0.00036164,10]
[402058138,1768500672385,-498.5,0.00036164,10]
[402058139,1768500672395,-500.0,0.00036164,10]
[402058140,1768500672405,-500.0,0.00036164,10]
[402058141,1768500672415,-500.0,0.00036164,10]
[402058142,1768500672425,-500.0,0.00036164,10]
[402058143,1768500672435,-500.0,0.00036164,10]
[402058144,1768500672445,-500.0,0.00036164,10]
[402058145,1768500672455,-658.75,0.00036164,10]
[402058146,1768500672465,-500.0,0.00036164,10]
[402058147,1768500672474,-500.0,0.00036164,10]
[402058148,1768500672484,-2013.44,0.00036164,10]
[402058149,1768500672494,-828.51,0.00036164,10]
[402058150,1768500672504,-500.0,0.00036164,10]
[402058151,1768500672514,-500.0,0.00036164,10]
[402058152,1768500672524,-500.0,0.00036164,10]
[402058153,1768500672784,-1090.46,0.00036164,10]
[402058154,1768500672801,-500.0,0.00036164,10]
[402058155,1768500672811,-500.0,0.00036164,10]
[402058156,1768500672821,-1122.18,0.00036164,10]
[402058157,1768500672831,-500.0,0.00036164,10]
[402058158,1768500672840,-500.0,0.00036164,10]
[402058159,1768500672850,-850.08,0.00036164,10]
[402058160,1768500672860,-500.0,0.00036164,10]
[402058161,1768500672869,-500.0,0.00036164,10]
[402058162,1768500672879,-960.93,0.00036164,10]
[402058163,1768500672888,-284.40505414,0.00036164,10]
[402058164,1768500672897,-371.73169243,0.00036164,10]
[402058165,1768500672906,-500.0,0.00036164,10]
[402058166,1768500672915,-2686.07,0.00036164,10]
[402058167,1768500672925,-500.0,0.00036164,10]
[402058168,1768500672935,-743.31,0.00036164,10]
[402058169,1768500672944,-585.65,0.00036164,10]
[402058170,1768500672953,-500.0,0.00036164,10]
[402058171,1768500672963,-653.48,0.00036164,10]
[402058172,1768500672972,-1057.87,0.00036164,10]
[402058173,1768500672981,-500.0,0.00036164,10]
[402058174,1768500672990,-500.0,0.00036164,10]
[402058175,1768500673000,-1312.18,0.00036164,10]
[402058176,1768500673009,-500.0,0.00036164,10]
[402058177,1768500673018,-500.0,0.00036164,10]
[402058178,1768500673028,-1109.8,0.00036164,10]
[402058179,1768500673037,-500.0,0.00036164,10]
[402058180,1768500673046,-500.0,0.00036164,10]
[402058181,1768500673056,-500.0,0.00036164,10]
[402058182,1768500673066,-500.0,0.00036164,10]
[402058183,1768500673075,-526.44,0.00036164,10]
[402058184,1768500673084,-500.0,0.00036164,10]
[402058185,1768500673094,-1080.55,0.00036164,10]
[402058186,1768500673103,-500.0,0.00036164,10]
[402058187,1768500673112,-438.06045832,0.00036164,10]
[402058188,1768500673122,-778.58,0.00036164,10]
[402058189,1768500673134,-500.0,0.00036164,10]
[402058190,1768500673143,-500.0,0.00036164,10]
[402058191,1768500673153,-695.33,0.00036164,10]
[402058192,1768500673162,-878.64,0.00036164,10]
[402058193,1768500673171,-500.0,0.00036164,10]
[402058194,1768500673180,-568.27033018,0.00036164,10]
[402058195,1768500673190,-706.26,0.00036164,10]
[402058196,1768500673200,-500.0,0.00036164,10]
[402058197,1768500673209,-500.0,0.00036164,10]
[402058198,1768500673218,-500.0,0.00036164,10]
[402058199,1768500673228,-500.0,0.00036164,10]
[402058200,1768500673237,-500.0,0.00036164,10]
[402058201,1768500673247,-727.8,0.00036164,10]
[402058202,1768500673256,-1033.14,0.00036164,10]
[402058203,1768500673266,-916.51,0.00036164,10]
[402058204,1768500673275,-1140.52,0.00036164,10]
[402058205,1768500673285,-500.0,0.00036164,10]
[402058206,1768500673294,-500.0,0.00036164,10]
[402058207,1768500673304,-500.0,0.00036164,10]
[402058208,1768500673313,-920.42,0.00036164,10]
[402058209,1768500673323,-500.0,0.00036164,10]
[402058210,1768500673332,-507.38,0.00036164,10]
[402058211,1768500673341,-500.0,0.00036164,10]
[402058212,1768500673351,-500.0,0.00036164,10]
[402058213,1768500673360,-500.0,0.00036164,10]
[402058214,1768500673370,-500.0,0.00036164,10]
[402058215,1768500673379,-500.0,0.00036164,10]
[402058216,1768500673389,-687.03,0.00036164,10]
[402058217,1768500673398,-500.0,0.00036164,10]
[402058218,1768500673407,-1129.68,0.00036164,10]
[402058219,1768500673417,-3824.26,0.00036164,10]
[402058220,1768500673426,-500.0,0.00036164,10]
[402058221,1768500673436,-500.0,0.00036164,10]
[402058222,1768500673445,-500.0,0.00036164,10]
[402058223,1768500673454,-728.23,0.00036164,10]
[402058224,1768500673464,-2376.47,0.00036164,10]
[402058225,1768500673473,-500.0,0.00036164,10]
[402058226,1768500673483,-500.0,0.00036164,10]
[402058227,1768500673492,-778.22,0.00036164,10]
[402058228,1768500673501,-1155.22,0.00036164,10]
[402058229,1768500673511,-1750.77,0.00036164,10]
[402058230,1768500673521,-286.63414976,0.00036164,10]
[402058231,1768500673530,-992.45,0.00036164,10]
[402058232,1768500673540,-634.6,0.00036164,10]
[402058233,1768500673549,-500.0,0.00036164,10]
[402058234,1768500673558,-500.0,0.00036164,10]
[402058235,1768500673568,-500.0,0.00036164,10]
[402058236,1768500673577,-500.0,0.00036164,10]
[402058237,1768500673587,-500.0,0.00036164,10]
[402058238,1768500673596,-546.45,0.00036164,10]
[402058239,1768500673605,-972.25,0.00036164,10]
[402058240,1768500673614,-500.0,0.00036164,10]
[402058241,1768500673623,-790.23,0.00036164,10]
[402058242,1768500673633,-697.58,0.00036164,10]
[402058243,1768500673642,-3531.28,0.00036164,10]
[402058244,1768500673652,-500.0,0.00036164,10]
[402058245,1768500673661,-399.23703893,0.00036164,10]
[402058246,1768500673671,-500.0,0.00036164,10]
[402058247,1768500673680,-500.0,0.00036164,10]
[402058248,1768500673691,-702.18,0.00036164,10]
[402058249,1768500673700,-990.89,0.00036164,10]
[402058250,1768500673709,-499.12256167,0.00036164,10]
[402058251,1768500673718,-1203.52,0.00036164,10]
[402058252,1768500673728,-887.28,0.00036164,10]
[402058253,1768500673737,-500.0,0.00036164,10]
[402058254,1768500673746,-500.0,0.00036164,10]
[402058255,1768500673755,-512.2,0.00036164,10]
[402058256,1768500673764,-1332.62,0.00036164,10]
[402058257,1768500673774,-500.0,0.00036164,10]
[402058258,1768500673783,-500.0,0.00036164,10]
[402058259,1768500673792,-591.97,0.00036164,10]
[402058260,1768500673802,-500.0,0.00036164,10]
[402058261,1768500673812,-500.0,0.00036164,10]
[402058262,1768500673821,-500.0,0.00036164,10]
[402058263,1768500673831,-500.0,0.00036164,10]
[402058264,1768500673840,-500.0,0.00036164,10]
[402058265,1768500673849,-500.0,0.00036164,10]
[402058266,1768500673858,-500.0,0.00036164,10]
[402058267,1768500673867,-796.14,0.00036164,10]
[402058268,1768500673877,-989.21,0.00036164,10]
[402058269,1768500673886,-506.72,0.00036164,10]
[402058270,1768500673896,-500.0,0.00036164,10]
[402058271,1768500673905,-1292.89,0.00036164,10]
[402058272,1768500673914,-646.89,0.00036164,10]
[402058273,1768500673924,-500.0,0.00036164,10]
[402058274,1768500673933,-775.31,0.00036164,10]
[402058275,1768500673944,-500.0,0.00036164,10]
[402058276,1768500673953,-701.33,0.00036164,10]
[402058277,1768500673962,-685.940005,0.00036164,7]
[402058278,1768500673972,-500.0,0.00036164,10]
[402058279,1768500673981,-685.940005,0.00036164,7]
[402058280,1768500673991,-521.48,0.00036164,10]
[402058281,1768500674000,-685.940005,0.00036164,7]
[402058282,1768500674009,-1008.25,0.00036164,10]
[402058283,1768500674020,-1423.77,0.00036164,10]
[402058284,1768500674029,-501.77551731,0.00036164,5]
[402058285,1768500674039,-685.940005,0.00036164,7]
[402058286,1768500674048,-624.39,0.00036164,10]
[402058287,1768500674057,-1293.86,0.00036164,10]
[402058288,1768500674067,-500.0,0.00036164,10]
[402058289,1768500674076,-1954.91,0.00036164,10]
[402058290,1768500674086,-1350.1,0.00036164,10]
[402058291,1768500674095,-686.08,0.00036164,10]
[402058292,1768500674104,-1467.71,0.00036164,10]
[402058293,1768500674114,-596.21,0.00036164,10]
[402058294,1768500674123,-500.0,0.00036164,10]
[402058295,1768500674135,-500.0,0.00036164,10]
[402058296,1768500674145,-500.0,0.00036164,10]
[402058297,1768500674154,-558.54,0.00036164,10]
[402058298,1768500674163,-566.57,0.00036164,10]
[402058299,1768500674173,-500.0,0.00036164,10]
[402058300,1768500674183,-168.236341,0.00036164,31]
[402058301,1768500674192,-168.236341,0.00036164,31]
[402058302,1768500674202,-516.6732232,0.00036164,10]
[402058303,1768500674212,-500.0,0.00036164,10]
[402058304,1768500674221,-500.0,0.00036164,10]
[402058305,1768500674231,-168.236341,0.00036164,31]
[402058306,1768500674240,-500.0,0.00036164,10]
[402058307,1768500674249,-168.236341,0.00036164,31]
[402058308,1768500674259,-500.0,0.00036164,10]
[402058309,1768500674268,-500.0,0.00036164,10]
[402058310,1768500674277,-500.0,0.00036164,10]
[402058311,1768500674287,-500.0,0.00036164,10]
[402058312,1768500674296,-500.0,0.00036164,10]
[402058313,1768500674306,-1305.94,0.00036164,10]
[402058314,1768500674315,-1167.39,0.00036164,10]
[402058315,1768500674324,-1147.77,0.00036164,10]
[402058316,1768500674333,-500.0,0.00036164,10]
[402058317,1768500674342,-500.0,0.00036164,10]
[402058318,1768500674352,-688.88,0.00036164,10]
[402058319,1768500674361,-539.75005144,0.00036164,10]
[402058320,1768500674370,-1649.18,0.00036164,10]
[402058321,1768500674379,-578.28,0.00036164,10]
[402058322,1768500674388,-876.73,0.00036164,10]
[402058323,1768500674398,-500.0,0.00036164,10]
[402058324,1768500674407,-768.69,0.00036164,10]
[402058325,1768500674417,-500.0,0.00036164,10]
[402058326,1768500674426,-518.58,0.00036164,10]
[402058327,1768500674437,-950.53,0.00036164,10]
[402058328,1768500674446,-595.11,0.00036164,10]
[402058329,1768500674456,-527.1,0.00036164,10]
[402058330,1768500674465,-590.32,0.00036164,10]
[402058331,1768500674474,-500.0,0.00036164,10]
[402058332,1768500674484,-712.94,0.00036164,10]
[402058333,1768500674493,-500.0,0.00036164,10]
[402058334,1768500674502,-500.0,0.00036164,10]
[402058335,1768500674512,-500.0,0.00036164,10]
[402058336,1768500674521,-500.0,0.00036164,10]
[402058337,1768500674530,-994.33,0.00036164,10]
[402058338,1768500674539,-500.0,0.00036164,10]
[402058339,1768500674548,-500.0,0.00036164,10]
[402058340,1768500674557,-500.0,0.00036164,10]
[402058341,1768500674566,-752.23,0.00036164,10]
[402058342,1768500674575,-500.0,0.00036164,10]
[402058343,1768500674584,-1306.34,0.00036164,10]
[402058344,1768500674597,-717.55,0.00036164,10]
[402058345,1768500674606,-1111.34,0.00036164,10]
[402058346,1768500674615,-707.78,0.00036164,10]
[402058347,1768500674624,-656.63,0.00036164,10]
[402058348,1768500674633,-500.0,0.00036164,10]
[402058349,1768500674643,-500.0,0.00036164,10]
[402058350,1768500674652,-500.0,0.00036164,10]
[402058351,1768500674661,-1460.91,0.00036164,10]
[402058352,1768500674669,-500.0,0.00036164,10]
[402058353,1768500674678,-572.26,0.00036164,10]
[402058354,1768500674687,-630.41,0.00036164,10]
[402058355,1768500674696,-500.0,0.00036164,10]
[402058356,1768500674705,-3866.71,0.00036164,10]
[402058357,1768500674714,-500.0,0.00036164,10]
[402058358,1768500674723,-500.0,0.00036164,10]
[402058359,1768500674732,-500.0,0.00036164,10]
[402058360,1768500674742,-500.0,0.00036164,10]
[402058361,1768500674751,-584.18,0.00036164,10]
[402058362,1768500674760,-1336.21,0.00036164,10]
[402058363,1768500674769,-500.0,0.00036164,10]
[402058364,1768500674778,-500.0,0.00036164,10]
[402058365,1768500674787,-967.76,0.00036164,10]
[402058366,1768500674796,-508.71559385,0.00036164,10]
[402058367,1768500674805,-500.0,0.00036164,10]
[402058368,1768500674814,-500.0,0.00036164,10]
[402058369,1768500674824,-500.0,0.00036164,10]
[402058370,1768500674833,-3202.82,0.00036164,10]
[402058371,1768500674842,-338.10624788,0.00036164,10]
[402058372,1768500674852,-500.0,0.00036164,10]
[402058373,1768500674861,-749.4,0.00036164,10]
[402058374,1768500674870,-810.72,0.00036164,10]
[402058375,1768500674879,-500.0,0.00036164,10]
[402058376,1768500674889,-500.0,0.00036164,10]
[402058377,1768500674898,-500.0,0.00036164,10]
[402058378,1768500674907,-1365.25,0.00036164,10]